bitfinex-derivatives/quotes_BNBF0:USTF0_20241225
["timestamp","ask_amount","ask_price","bid_price","bid_amount"]
[1735130724585,0.28196416,709.31,707.23,1.04251906]
[1735130724586,0.25953996,709.05,707.23,1.04251906]
[1735130724785,0.25953996,709.04,707.23,1.04251906]
[1735130724986,0.25953996,709.03,707.23,1.04251906]
[1735130725286,0.25953996,709.02,707.23,1.04251906]
[1735130725481,0.25953996,709.01,707.23,1.04251906]
[1735130725686,0.25953996,709.0,707.23,1.04251906]
[1735130725888,0.25953996,708.99,707.23,1.04251906]
[1735130726087,0.25953996,708.98,707.23,1.04251906]
[1735130726288,0.25953996,708.97,707.23,1.04251906]
[1735130726491,0.28196416,709.31,707.25,1.04251906]
[1735130726682,0.25954036,709.3,707.25,1.04251906]
[1735130726990,0.25954036,709.3,707.26,1.04251906]
[1735130727187,0.25954036,709.29,707.26,1.04251906]
[1735130727387,0.25954036,709.28,707.26,1.04251906]
[1735130727586,0.25954036,709.27,707.26,1.04251906]
[1735130727787,0.28196416,709.31,707.26,1.04251906]
[1735130728088,0.25952063,709.3,707.49,1.04251906]
[1735130728288,0.25952063,709.29,707.49,1.04251906]
[1735130728588,0.25952063,709.28,707.49,1.04251906]
[1735130728782,0.25952063,709.27,707.49,1.04251906]
[1735130728988,0.25952063,709.26,707.5,1.04251906]
[1735130729290,0.25952063,709.25,707.5,1.04251906]
[1735130729482,0.25952063,709.24,707.5,1.04251906]
[1735130729686,0.25952063,709.23,707.5,1.04251906]
[1735130729888,0.25949659,709.22,707.5,1.04251906]
[1735130730085,0.25949659,709.21,707.56,1.04251906]
[1735130730291,0.25949659,709.2,707.56,1.04251906]
[1735130730485,0.25949659,709.19,707.56,1.04251906]
[1735130730689,0.25949659,709.18,707.56,1.04251906]
[1735130730885,0.25949659,709.17,707.56,1.04251906]
[1735130731090,0.25949659,709.16,707.55,1.04251906]
[1735130731290,0.25949659,709.15,707.55,1.04251906]
[1735130731486,0.25949659,709.14,707.55,1.04251906]
[1735130731685,0.25949659,709.13,707.55,1.04251906]
[1735130731890,0.25949659,709.12,707.55,1.04251906]
[1735130732091,0.25949659,709.11,707.55,1.04251906]
[1735130732290,0.25949659,709.1,707.55,1.04251906]
[1735130732592,0.25949659,709.09,707.55,1.04251906]
[1735130732791,0.25949659,709.08,707.55,1.04251906]
[1735130732992,0.25949659,709.08,707.05,2.12847642]
[1735130732993,0.28196416,709.31,707.58,1.04251906]
[1735130733293,0.25947019,709.3,707.58,1.04251906]
[1735130734088,0.25947019,709.3,707.5,1.04251906]
[1735130735089,0.25945595,709.29,707.5,1.04251906]
[1735130735288,0.25945595,709.3,707.5,1.04251906]
[1735130735895,0.25945595,709.3,706.89,2.12847642]
[1735130735896,0.25946411,709.29,707.43,1.04251906]
[1735130736093,0.25946411,709.28,707.43,1.04251906]
[1735130736293,0.25946411,709.27,707.43,1.04251906]
[1735130736494,0.25946411,709.26,707.43,1.04251906]
[1735130736793,0.25946411,709.25,707.43,1.04251906]
[1735130736994,0.25946411,709.25,707.12,2.73744867]
[1735130736995,0.25946411,709.24,707.44,1.04251906]
[1735130737192,0.25946411,709.23,707.44,1.04251906]
[1735130737388,0.25946411,709.22,707.44,1.04251906]
[1735130737592,0.25946411,709.21,707.45,0.862]
[1735130737897,0.28196416,709.31,707.56,1.04251906]
[1735130738091,0.25945493,709.3,707.56,1.04251906]
[1735130738796,0.25945493,709.3,707.55,1.04251906]
[1735130740594,0.25945359,709.29,707.55,1.04251906]
[1735130740891,0.28196416,709.31,707.45,1.90451906]
[1735130740892,0.25945359,709.28,707.56,1.04251906]
[1735130741092,0.25945359,709.27,707.56,1.04251906]
[1735130741297,0.25945359,709.26,707.56,1.04251906]
[1735130741493,0.25945359,709.25,707.56,1.04251906]
[1735130741697,0.25945359,709.24,707.56,1.04251906]
[1735130741898,0.25945359,709.23,707.55,1.04251906]
[1735130742193,0.25945359,709.22,707.55,1.04251906]
[1735130742393,0.25945359,709.21,707.55,1.04251906]
[1735130742594,0.25945359,709.2,707.54,1.04251906]
[1735130742798,0.25945359,709.3,707.54,1.04251906]
[1735130742999,0.25947214,709.29,707.54,1.04251906]
[1735130743196,0.25947214,709.3,707.54,1.04251906]
[1735130743398,0.2594623,709.29,707.54,1.04251906]
[1735130743701,0.2594623,709.28,707.45,0.862]
[1735130743998,0.28196416,709.31,707.45,0.862]
[1735130743999,0.2594623,709.27,707.45,0.862]
[1735130744200,0.25946542,709.3,707.45,0.862]
[1735130744501,0.25946542,709.29,707.45,0.862]
[1735130744702,0.25946542,709.28,707.45,0.862]
[1735130744999,0.25946542,709.27,707.45,0.862]
[1735130745197,0.25946542,709.26,707.45,0.862]
[1735130745394,0.28196416,709.31,707.45,0.862]
[1735130745395,0.25946542,709.25,707.45,0.862]
[1735130745599,0.25946542,709.24,707.45,0.862]
[1735130745795,0.25948467,709.23,707.45,0.862]
[1735130745996,0.28196416,709.31,707.45,0.862]
[1735130746194,0.25948786,709.3,707.45,0.862]
[1735130748704,0.25951944,709.29,707.45,0.862]
[1735130748904,0.25951944,709.28,707.45,0.862]
[1735130749101,0.25951944,709.27,707.45,0.862]
[1735130749301,0.25951944,709.26,707.45,0.862]
[1735130749499,0.25951944,709.25,707.45,0.862]
[1735130749698,0.25951944,709.24,707.45,0.862]
[1735130749898,0.25951944,709.23,707.45,0.862]
[1735130750098,0.25951944,709.22,707.45,0.862]
[1735130750304,0.25951944,709.21,707.45,0.862]
[1735130750503,0.25951944,709.2,707.45,0.862]
[1735130750697,0.25951944,709.19,707.45,0.862]
[1735130750903,0.25951944,709.18,707.45,0.862]
[1735130751206,0.25951944,709.17,707.45,0.862]
[1735130751399,0.28196416,709.31,707.45,0.862]
[1735130751602,0.2595139,709.3,707.45,0.862]
[1735130751998,0.2595139,709.3,707.45,1.90451906]
[1735130752204,0.25951009,709.29,707.45,1.90451906]
[1735130752398,0.25951009,709.28,707.45,1.90451906]
[1735130752704,0.25951009,709.27,707.45,1.04251906]
[1735130752904,0.25951009,709.27,706.81,2.12847642]
[1735130752905,0.25951009,709.26,707.57,1.04251906]
[1735130753102,0.25951009,709.25,707.57,1.04251906]
[1735130753298,0.25951009,709.24,707.57,1.04251906]
[1735130753603,0.25951009,709.23,707.57,1.04251906]
[1735130753806,0.25951009,709.22,707.58,0.741]
[1735130754001,0.25951009,709.21,707.58,0.741]
[1735130754201,0.28196416,709.31,707.58,0.741]
[1735130754405,0.25951333,709.3,707.58,0.741]
[1735130754706,0.25951333,709.29,707.61,1.04251906]
[1735130754906,0.25951333,709.28,707.61,1.04251906]
[1735130755106,0.25951333,709.27,707.61,1.04251906]
[1735130755407,0.25951333,709.26,707.61,1.04251906]
[1735130755607,0.25951333,709.25,707.61,1.04251906]
[1735130755810,0.25951333,709.24,707.58,1.78351906]
[1735130756105,0.25951333,709.23,707.58,1.78351906]
[1735130756309,0.25951333,709.22,707.58,1.78351906]
[1735130756606,0.25951333,709.21,707.58,1.78351906]
[1735130757007,0.28196416,709.31,707.58,0.741]
[1735130757205,0.25966141,709.2,707.58,0.741]
[1735130757410,0.25966141,709.19,707.58,0.741]
[1735130757707,0.25966141,709.18,707.58,0.741]
[1735130757908,0.25966141,709.17,707.58,0.741]
[1735130758206,0.25966141,709.16,707.58,0.741]
[1735130758407,0.25966141,709.15,707.58,0.741]
[1735130758607,0.25966141,709.14,707.58,0.741]
[1735130758802,1.05455197,708.94,707.58,0.741]
[1735130759010,0.25966141,708.93,707.58,0.741]
[1735130759407,1.05455197,708.94,707.58,0.741]
[1735130759701,0.25979695,708.93,707.58,0.741]
[1735130760310,0.25979695,709.29,707.58,0.741]
[1735130760503,0.25979695,708.92,707.58,0.741]
[1735130760706,0.25979695,709.28,707.58,0.741]
[1735130760906,1.05455197,709.17,707.58,0.741]
[1735130761106,0.25979695,709.16,707.58,0.741]
[1735130761307,0.28196416,709.31,707.58,0.741]
[1735130761609,0.25974041,709.3,707.58,0.741]
[1735130762008,0.89727122,709.29,707.58,0.741]
[1735130762205,0.25974041,709.28,707.58,0.741]
[1735130762609,0.25974041,709.27,707.58,0.741]
[1735130762810,0.25974041,709.26,707.58,0.741]
[1735130763012,1.04793138,709.12,707.58,0.741]
[1735130763207,0.25974041,709.11,707.58,0.741]
[1735130763410,0.25974041,709.1,707.58,0.741]
[1735130763608,0.25974041,709.09,707.58,0.741]
[1735130763806,1.04793138,709.12,707.58,0.741]
[1735130764005,0.25985835,709.11,707.58,0.741]
[1735130764213,0.25986506,709.1,707.58,0.741]
[1735130764411,0.25986506,709.09,707.58,0.741]
[1735130764611,0.25986506,709.08,707.58,0.741]
[1735130764914,0.25986506,709.07,705.62,5.26935377]
[1735130765112,0.25986506,709.07,705.6,1.04147677]
[1735130765113,0.25986506,709.06,705.63,5.26935377]
[1735130765412,0.25986506,709.05,705.64,5.26935377]
[1735130765616,0.25986506,709.04,705.65,2.75484818]
[1735130765813,0.25986506,709.03,705.65,5.26935377]
[1735130766011,0.25986506,709.02,705.93,0.59]
[1735130766210,0.25986506,709.01,705.93,0.59]
[1735130766407,0.25986506,709.0,705.93,0.59]
[1735130766607,0.25986506,708.99,705.93,0.59]
[1735130766811,0.25986506,708.98,705.93,0.59]
[1735130767009,0.28196416,709.31,705.93,0.59]
[1735130767010,0.25986506,708.97,705.93,0.59]
[1735130767313,0.25986506,708.96,705.93,0.59]
[1735130767513,0.25986506,708.95,705.93,0.59]
[1735130767714,0.25986506,708.94,705.93,0.59]
[1735130767914,0.25986506,708.93,705.93,0.59]
[1735130768108,0.28196416,709.31,705.93,0.59]
[1735130768109,0.25986506,708.92,705.93,0.59]
[1735130768313,0.25986506,708.91,705.93,0.59]
[1735130768513,0.25986506,708.9,705.93,0.59]
[1735130768709,0.25986506,708.89,705.93,0.59]
[1735130768911,0.25986506,708.88,705.93,0.59]
[1735130769113,0.25986506,708.87,705.93,0.59]
[1735130769413,0.63775951,709.21,705.93,0.59]
[1735130769610,0.89761087,709.2,705.93,0.59]
[1735130769809,0.89761087,709.19,705.93,0.59]
[1735130770014,6.02912067,709.25,705.93,0.59]
[1735130770015,0.89761087,709.18,705.93,0.59]
[1735130770210,0.89761087,709.17,705.93,0.59]
[1735130770409,0.89761087,709.16,705.93,0.59]
[1735130770615,0.89761087,709.15,705.93,0.59]
[1735130770815,0.89761087,709.14,705.93,0.59]
[1735130771017,0.89761087,709.13,705.93,0.59]
[1735130771215,0.28196416,709.31,705.93,0.59]
[1735130771216,0.89761087,709.12,705.93,0.59]
[1735130771415,0.89761087,709.11,705.93,0.59]
[1735130771616,0.89761087,709.1,705.93,0.59]
[1735130771808,0.89761087,709.09,705.93,0.59]
[1735130772013,0.89762348,709.08,705.93,0.59]
[1735130772211,0.89762348,709.07,705.93,0.59]
[1735130772416,0.89762348,709.06,705.93,0.59]
[1735130772615,0.28196416,709.31,705.93,0.59]
[1735130772616,0.25985561,709.05,705.93,0.59]
[1735130772817,0.25985561,709.04,705.93,0.59]
[1735130773017,0.25985561,709.03,705.93,0.59]
[1735130773316,0.25985561,709.02,705.93,0.59]
[1735130773517,0.25985561,709.01,705.93,0.59]
[1735130773817,0.25985561,709.0,705.93,0.59]
[1735130774016,0.25985561,708.99,705.93,0.59]
[1735130774210,0.28196416,709.31,705.93,0.59]
[1735130774211,0.25985561,708.98,705.93,0.59]
[1735130774410,0.25985561,708.97,705.93,0.59]
[1735130774613,0.25986878,708.96,705.93,0.59]
[1735130774816,0.25986878,708.95,705.93,0.59]
[1735130775013,0.25986878,708.94,705.93,0.59]
[1735130775219,0.25986878,708.93,705.93,0.59]
[1735130775417,0.25986796,708.92,705.93,0.59]
[1735130775719,0.25986796,708.91,705.93,0.59]
[1735130775918,0.25986796,708.9,705.93,0.59]
[1735130776117,0.25986796,708.89,705.93,0.59]
[1735130776317,0.25986796,708.88,705.93,0.59]
[1735130776613,0.89766146,708.87,705.93,0.59]
[1735130776819,0.89766146,708.86,705.93,0.59]
[1735130777013,0.89766146,708.85,705.93,0.59]
[1735130777312,0.28196416,709.31,705.93,0.59]
[1735130777313,0.89766146,708.84,705.93,0.59]
[1735130777512,0.89766146,708.83,705.93,0.59]
[1735130777718,0.89766146,708.82,705.93,0.59]
[1735130777916,0.89766146,708.81,705.93,0.59]
[1735130778118,0.89766146,708.8,705.93,0.59]
[1735130778321,0.89766146,708.79,705.93,0.59]
[1735130778620,0.89766146,708.78,705.93,0.59]
[1735130778818,0.89766146,708.77,705.93,0.59]
[1735130779019,0.89766146,708.76,705.93,0.59]
[1735130779217,0.89766146,708.75,705.93,0.59]
[1735130779416,0.89766146,708.74,705.93,0.59]
[1735130779618,0.89766146,708.73,705.93,0.59]
[1735130779913,0.89766146,708.72,705.93,0.59]
[1735130780118,0.89766146,708.71,705.93,0.59]
[1735130780421,0.89766146,708.7,705.93,0.59]
[1735130780719,0.89766146,708.69,705.93,0.59]
[1735130780915,0.89766146,708.68,705.93,0.59]
[1735130781118,0.89766146,708.67,705.93,0.59]
[1735130781318,0.89766146,708.66,705.93,0.59]
[1735130781516,0.89766146,708.65,705.93,0.59]
[1735130781717,0.89766146,708.64,705.93,0.59]
[1735130781913,5.99181204,709.08,705.93,0.59]
[1735130781914,0.89766146,708.63,705.93,0.59]
[1735130782117,0.89766146,708.62,705.93,0.59]
[1735130782418,1.04271695,708.84,705.93,0.59]
[1735130782419,0.89766146,708.61,705.93,0.59]
[1735130782621,0.89814261,708.6,705.93,0.59]
[1735130782820,0.89814261,708.59,705.93,0.59]
[1735130783016,0.89814261,708.58,705.93,0.59]
[1735130783218,0.26002499,708.57,705.93,0.59]
[1735130783418,1.04271695,708.71,705.93,0.59]
[1735130783620,0.26005108,708.56,705.93,0.59]
[1735130783822,0.89821408,708.55,705.93,0.59]
[1735130784023,0.89821408,708.54,705.93,0.59]
[1735130784221,0.89821408,708.53,705.93,0.59]
[1735130784422,0.89821408,708.52,705.93,0.59]
[1735130784620,0.89821408,708.51,705.93,0.59]
[1735130784821,0.89821408,708.5,705.93,0.59]
[1735130785021,0.89821408,708.49,705.93,0.59]
[1735130785223,0.89821408,708.48,705.93,0.59]
[1735130785524,0.89821408,708.47,705.93,0.59]
[1735130785723,0.89821408,708.46,705.93,0.59]
[1735130785917,0.89821408,708.45,705.93,0.59]
[1735130786122,0.89840986,708.44,705.93,0.59]
[1735130786423,0.89840986,708.43,705.93,0.59]
[1735130786624,0.89840986,708.42,705.93,0.59]
[1735130786818,0.89840986,708.41,705.93,0.59]
[1735130787021,0.89840986,708.4,705.93,0.59]
[1735130787322,0.89840986,708.39,705.93,0.59]
[1735130787623,0.89840986,708.38,705.93,0.59]
[1735130787822,0.89840986,708.37,705.93,0.59]
[1735130788022,0.89838255,708.36,705.93,0.59]
[1735130788219,0.89838255,708.35,705.93,0.59]
[1735130788423,0.89838255,708.34,705.93,0.59]
[1735130788625,0.89838255,708.33,705.93,0.59]
[1735130788819,0.89838255,708.32,705.93,0.59]
[1735130789124,0.260103,708.31,705.93,0.59]
[1735130789325,0.260103,708.3,705.93,0.59]
[1735130789624,0.89838255,708.29,705.93,0.59]
[1735130789824,0.89838255,708.28,705.93,0.59]
[1735130790025,0.89838255,708.27,705.93,0.59]
[1735130790225,0.260103,708.26,705.93,0.59]
[1735130790526,1.04271695,708.56,705.93,0.59]
[1735130790725,1.04271695,708.46,705.93,0.59]
[1735130790925,0.89818571,708.45,705.93,0.59]
[1735130791225,0.89818571,708.44,705.93,0.59]
[1735130791420,0.89818571,708.43,705.93,0.59]
[1735130791622,1.04271695,708.29,705.93,0.59]
[1735130791826,0.89818571,708.28,705.93,0.59]
[1735130792125,0.89818571,708.27,705.93,0.59]
[1735130792325,0.89818571,708.26,705.93,0.59]
[1735130792525,0.89818571,708.25,705.93,0.59]
[1735130792723,0.26003871,708.24,705.93,0.59]
[1735130792924,0.26003871,708.23,705.93,0.59]
[1735130793119,0.26003871,708.22,705.93,0.59]
[1735130793325,1.04271695,708.25,705.93,0.59]
[1735130793524,0.25996138,708.24,705.93,0.59]
[1735130793727,0.25996138,708.23,705.93,0.59]
[1735130793927,0.25996138,708.22,705.93,0.59]
[1735130794120,0.25996138,708.21,705.93,0.59]
[1735130794325,0.25996138,708.2,705.93,0.59]
[1735130794522,0.25996138,708.19,705.93,0.59]
[1735130794727,0.25996138,708.18,705.93,0.59]
[1735130794927,0.25996138,708.17,705.93,0.59]
[1735130795127,0.25996138,708.16,705.93,0.59]
[1735130795323,0.25996138,708.15,705.93,0.59]
[1735130795527,0.25996138,708.14,705.93,0.59]
[1735130795728,0.25996138,708.13,705.93,0.59]
[1735130795925,0.25996138,708.12,705.93,0.59]
[1735130796127,0.25996138,708.11,705.93,0.59]
[1735130796326,0.25996138,708.1,705.93,0.59]
[1735130796530,0.25996138,708.09,705.93,0.59]
[1735130796729,0.25996138,708.08,705.93,0.59]
[1735130796930,0.25996138,708.07,705.93,0.59]
[1735130797133,0.25996138,708.06,705.93,0.59]
[1735130797425,0.25996138,708.05,705.93,0.59]
[1735130797631,1.04271695,708.35,705.93,0.59]
[1735130797632,0.25996138,708.04,705.93,0.59]
[1735130797931,2.12888045,708.64,705.93,0.59]
[1735130797932,0.25996138,708.03,705.93,0.59]
[1735130798132,0.25996138,708.02,705.93,0.59]
[1735130798330,0.25996138,708.01,705.93,0.59]
[1735130798533,0.25996138,708.0,705.93,0.59]
[1735130798727,0.25997174,707.99,705.93,0.59]
[1735130798926,0.25997174,707.98,705.93,0.59]
[1735130799130,0.25997174,707.97,705.93,0.59]
[1735130799325,0.25997174,707.96,705.93,0.59]
[1735130799531,0.25997174,707.95,705.93,0.59]
[1735130799833,0.25997174,707.94,705.93,0.59]
[1735130800131,0.25997174,707.93,705.93,0.59]
[1735130800326,0.25997174,707.92,705.93,0.59]
[1735130800530,0.25997174,707.91,705.93,0.59]
[1735130800729,1.04271695,708.25,705.93,0.59]
[1735130800730,0.25997174,707.9,705.93,0.59]
[1735130800925,0.25997174,707.89,705.93,0.59]
[1735130801130,0.25997174,707.88,705.93,0.59]
[1735130801331,0.25997174,707.87,705.93,0.59]
[1735130801532,0.26005594,707.86,705.93,0.59]
[1735130801732,0.26005594,707.85,705.93,0.59]
[1735130802034,0.26005594,707.84,705.93,0.59]
[1735130802233,0.26005594,707.83,705.93,0.59]
[1735130802429,0.26005594,707.82,705.93,0.59]
[1735130802629,0.26005594,707.81,705.93,0.59]
[1735130802834,0.26005594,707.8,705.93,0.59]
[1735130803034,0.26005594,707.79,705.93,0.59]
[1735130803227,0.26005594,707.78,705.93,0.59]
[1735130803429,0.26005594,707.77,705.93,0.59]
[1735130803729,0.26005594,707.76,705.93,0.59]
[1735130803932,0.26005594,707.75,705.93,0.59]
[1735130804131,1.04271695,708.1,705.93,0.59]
[1735130804328,0.26005429,708.09,705.93,0.59]
[1735130804529,0.26005429,708.08,705.93,0.59]
[1735130804733,0.26005429,708.07,705.93,0.59]
[1735130804934,0.26005429,708.06,705.93,0.59]
[1735130805136,0.26005429,708.05,705.93,0.59]
[1735130805436,0.89823334,708.04,705.93,0.59]
[1735130805638,1.04271695,707.96,705.93,0.59]
[1735130805840,0.89823334,707.95,705.93,0.59]
[1735130806139,0.89823334,707.94,705.93,0.59]
[1735130806441,0.89823334,707.93,705.93,0.59]
[1735130806738,1.04271695,707.82,705.93,0.59]
[1735130806939,0.26010353,707.81,705.93,0.59]
[1735130807138,1.04271695,707.82,705.93,0.59]
[1735130807139,0.26010353,707.8,705.93,0.59]
[1735130807339,0.26010353,707.79,705.93,0.59]
[1735130807539,0.26010353,707.78,705.93,0.59]
[1735130807733,0.26009894,707.77,705.93,0.59]
[1735130807936,0.26009894,707.76,705.93,0.59]
[1735130808138,0.26009894,707.75,705.93,0.59]
[1735130808436,0.26009894,707.74,705.93,0.59]
[1735130808636,0.26009894,707.73,705.93,0.59]
[1735130808832,0.26009894,707.72,705.93,0.59]
[1735130809035,0.26009894,707.71,705.93,0.59]
[1735130809239,0.26009894,707.7,705.93,0.59]
[1735130809439,0.26009894,707.69,705.93,0.59]
[1735130809641,0.26009894,707.68,705.93,0.59]
[1735130809841,0.26009894,707.92,705.93,0.59]
[1735130810042,0.26009894,707.91,705.93,0.59]
[1735130810344,0.26009894,707.9,705.93,0.59]
[1735130810539,0.26009894,707.89,705.93,0.59]
[1735130810744,0.26009894,707.88,705.93,0.59]
[1735130810943,0.26009894,707.87,705.93,0.59]
[1735130811244,0.26009894,707.86,706.0,1.03697744]
[1735130811545,0.26009894,707.85,706.0,1.03697744]
[1735130811745,0.26009894,707.84,706.0,1.03697744]
[1735130811945,0.26009894,707.83,706.0,1.03697744]
[1735130812146,1.04271695,708.02,706.06,1.03697744]
[1735130812345,0.26002894,708.01,706.06,1.03697744]
[1735130812548,0.26002894,708.0,706.06,1.73397744]
[1735130812745,0.26002894,707.99,706.06,1.73397744]
[1735130812944,1.04271695,708.02,706.06,1.73397744]
[1735130812945,0.26002894,707.98,706.06,1.73397744]
[1735130813143,0.26002894,707.97,706.06,1.73397744]
[1735130813340,0.26002894,707.96,706.06,1.73397744]
[1735130813544,1.04271695,707.86,706.06,0.697]
[1735130813747,0.26002894,707.85,706.06,0.697]
[1735130813947,0.26002894,707.84,706.06,0.697]
[1735130814140,0.26002894,707.83,706.06,0.697]
[1735130814346,0.26002894,707.82,706.06,0.697]
[1735130814547,0.26002894,707.81,706.06,0.697]
[1735130814747,0.26002894,707.8,706.06,0.697]
[1735130814941,0.26002894,707.79,706.06,0.697]
[1735130815140,0.26002894,707.78,706.06,0.697]
[1735130815443,0.26002894,707.77,706.06,0.697]
[1735130815742,0.26006167,707.76,706.06,0.697]
[1735130816046,0.26006167,707.75,706.06,0.697]
[1735130816246,0.26006167,707.74,706.06,0.697]
[1735130816548,0.26006167,707.73,706.06,0.697]
[1735130816749,0.26006167,707.72,706.06,0.697]
[1735130817049,0.26006167,707.71,706.06,0.697]
[1735130817245,0.26006167,707.7,706.06,0.697]
[1735130817445,0.26006167,707.69,706.09,1.03697744]
[1735130817744,0.26006167,707.68,706.09,1.03697744]
[1735130817940,0.26006167,707.67,706.09,1.03697744]
[1735130818242,1.04271695,707.89,706.09,1.03697744]
[1735130818243,0.26006167,707.66,706.09,1.03697744]
[1735130818444,0.26006167,707.65,706.09,1.03697744]
[1735130818644,0.26006167,707.64,706.09,1.03697744]
[1735130818846,0.26006167,707.63,706.09,1.03697744]
[1735130819040,0.26006167,707.62,706.09,1.03697744]
[1735130819245,0.26006167,707.61,706.09,1.03697744]
[1735130819446,0.26006167,707.6,706.09,1.03697744]
[1735130819748,0.26006167,707.6,706.06,0.697]
[1735130819749,0.26006167,707.59,706.12,1.03697744]
[1735130819947,1.04271695,707.93,706.12,1.03697744]
[1735130819948,0.26006167,707.58,706.12,1.03697744]
[1735130820143,0.26006167,707.57,706.12,1.03697744]
[1735130820347,0.26006167,707.56,706.12,1.03697744]
[1735130820647,1.04271695,707.93,706.12,1.03697744]
[1735130820648,0.26000507,707.55,706.12,1.03697744]
[1735130820842,0.26000507,707.54,706.12,1.03697744]
[1735130821041,0.26000507,707.53,706.12,1.03697744]
[1735130821246,0.26000507,707.52,706.12,1.03697744]
[1735130821449,0.26000507,707.51,706.12,1.03697744]
[1735130821647,0.26000507,707.5,706.12,1.03697744]
[1735130821948,0.26000507,707.49,706.12,1.03697744]
[1735130822148,0.26000507,707.48,706.12,1.03697744]
[1735130822350,0.26005222,707.47,706.17,1.03697744]
[1735130822650,0.26005222,707.46,706.17,1.03697744]
[1735130822853,0.26005222,707.45,706.17,1.03697744]
[1735130823044,1.04271695,707.97,706.17,1.03697744]
[1735130823244,0.26004323,707.96,706.17,1.03697744]
[1735130823444,0.26004323,707.95,706.17,1.03697744]
[1735130823745,0.26004323,707.94,706.17,1.03697744]
[1735130823950,0.26004323,707.93,706.17,1.03697744]
[1735130824250,0.26004323,707.92,706.17,1.03697744]
[1735130824452,0.26004323,707.91,706.17,1.03697744]
[1735130824654,0.26004323,707.9,706.17,1.03697744]
[1735130824849,0.26004323,707.89,706.17,1.03697744]
[1735130825053,0.26006944,707.88,706.17,1.03697744]
[1735130825247,0.26006944,707.87,706.17,1.03697744]
[1735130825452,0.26006944,707.86,706.17,1.03697744]
[1735130825652,0.26006944,707.85,706.17,1.03697744]
[1735130825852,0.26006944,707.84,706.17,1.03697744]
[1735130826052,0.26006944,707.83,706.17,1.03697744]
[1735130826249,0.26006944,707.82,706.17,1.03697744]
[1735130826454,0.26006944,707.81,706.17,1.03697744]
[1735130826754,0.26006944,707.8,706.17,1.03697744]
[1735130826951,0.26006944,707.79,706.17,1.03697744]
[1735130827149,0.26006944,707.78,706.17,1.03697744]
[1735130827453,0.26006944,707.77,706.17,1.03697744]
[1735130827654,0.26007043,707.76,706.17,1.03697744]
[1735130827850,0.26007043,707.75,706.17,1.03697744]
[1735130828049,0.26007043,707.74,706.17,1.03697744]
[1735130828356,0.26007043,707.73,706.17,1.03697744]
[1735130828553,0.26007043,707.72,706.17,1.03697744]
[1735130828747,0.26007043,707.71,706.17,1.03697744]
[1735130828950,0.26007043,707.7,706.17,1.03697744]
[1735130829253,0.26007043,707.69,706.17,1.03697744]
[1735130829453,0.26007043,707.68,706.17,1.03697744]
[1735130829653,0.26007043,707.67,706.17,1.03697744]
[1735130829854,0.26007043,707.66,706.17,1.03697744]
[1735130830053,0.26007043,707.65,706.17,1.03697744]
[1735130830254,0.26007043,707.64,706.17,1.03697744]
[1735130830455,0.26014068,707.63,706.17,1.03697744]
[1735130830655,0.26015518,707.62,706.17,1.03697744]
[1735130830856,0.26015518,707.61,706.17,1.03697744]
[1735130831154,0.26016383,707.6,706.17,1.03697744]
[1735130831354,0.26016383,707.59,706.17,1.03697744]
[1735130831555,0.26016383,707.58,706.17,1.03697744]
[1735130831755,0.26016383,707.57,706.17,1.03697744]
[1735130831952,0.26016383,707.56,706.17,1.03697744]
[1735130832157,0.26016383,707.55,706.06,0.697]
[1735130832352,0.26016383,707.54,706.06,0.697]
[1735130832556,0.26016383,707.53,706.06,0.697]
[1735130832756,0.26016383,707.52,706.06,0.697]
[1735130832956,0.26016383,707.51,706.06,0.697]
[1735130833149,1.04271695,707.81,706.06,0.697]
[1735130833351,0.2601624,707.8,706.06,0.697]
[1735130833557,0.2601624,707.79,706.06,0.697]
[1735130833757,0.2601624,707.78,706.06,0.697]
[1735130833953,1.04271695,707.67,706.06,0.697]
[1735130834149,0.2601624,707.66,706.06,0.697]
[1735130835352,0.2601624,707.65,706.06,0.697]
[1735130835554,0.2601624,707.64,706.06,0.697]
[1735130835755,1.04271695,707.82,706.06,0.697]